fUSD/lending_fUSD_20250521
["ID","MTS","AMOUNT","RATE_DAILY","PERIOD"]
[361839022,1747827116832,-847.72,0.00038904,5]
[361839023,1747827116842,-674.03,0.00038904,5]
[361839024,1747827116852,-627.96,0.00038904,5]
[361839025,1747827116862,-524.74,0.00038904,5]
[361839026,1747827116874,-1128.54,0.00038904,5]
[361839027,1747827116884,-814.71,0.00038904,5]
[361839028,1747827116895,-1370.32,0.00038904,5]
[361839029,1747827116906,-574.94,0.00038904,5]
[361839030,1747827116916,-455.14,0.00038904,5]
[361839031,1747827116927,-1337.7,0.00038904,5]
[361839032,1747827116937,-478.34,0.00038904,5]
[361839033,1747827116947,-504.02,0.00038904,5]
[361839034,1747827116957,-565.8,0.00038904,5]
[361839035,1747827116968,-728.55,0.00038904,5]
[361839036,1747827116977,-732.9,0.00038904,5]
[361839037,1747827116987,-1165.23,0.00038904,5]
[361839038,1747827116997,-1378.94,0.00038904,5]
[361839039,1747827117006,-2721.26,0.00038904,5]
[361839040,1747827117016,-1472.56,0.00038904,5]
[361839041,1747827117026,-815.36,0.00038904,5]
[361839042,1747827117036,-3421.67,0.00038904,5]
[361839043,1747827117045,-2581.6,0.00038904,5]
[361839044,1747827117055,-3315.32,0.00038904,5]
[361839045,1747827117065,-1137.48,0.00038904,5]
[361839046,1747827117075,-1399.99,0.00038904,5]
[361839047,1747827117084,-2580.06,0.00038904,5]
[361839048,1747827117094,-594.98,0.00038904,5]
[361839049,1747827117104,-1980.3,0.00038904,5]
[361839050,1747827117115,-2964.03,0.00038904,5]
[361839051,1747827117125,-461.83,0.00038904,5]
[361839052,1747827117135,-1561.77,0.00038904,5]
[361839053,1747827117145,-950.46,0.00038904,5]
[361839054,1747827117154,-1769.8,0.00038904,5]
[361839055,1747827117164,-498.42,0.00038904,5]
[361839056,1747827117174,-1036.55,0.00038904,5]
[361839057,1747827117184,-934.39,0.00038904,5]
[361839058,1747827117193,-3529.11,0.00038904,5]
[361839059,1747827117203,-1927.57,0.00038904,5]
[361839060,1747827117214,-1266.55,0.00038904,5]
[361839061,1747827117224,-1455.7,0.00038904,5]
[361839062,1747827117233,-2836.71,0.00038904,5]
[361839063,1747827117243,-760.46,0.00038904,5]
[361839064,1747827117252,-1060.83,0.00038904,5]
[361839065,1747827117262,-6149.49,0.00038904,5]
[361839066,1747827117271,-1097.74,0.00038904,5]
[361839067,1747827117281,-879.61,0.00038904,5]
[361839068,1747827117291,-523.60856568,0.00038904,5]
[361839069,1747827117301,-1674.91,0.00038904,5]
[361839070,1747827117311,-1406.72,0.00038904,5]
[361839071,1747827117322,-867.9,0.00038904,5]
[361839072,1747827117332,-526.8,0.00038904,5]
[361839073,1747827117342,-950.88,0.00038904,5]
[361839074,1747827117351,-882.4,0.00038904,5]
[361839075,1747827117361,-800.16,0.00038904,5]
[361839076,1747827117371,-504.22,0.00038904,5]
[361839077,1747827117381,-1081.43,0.00038904,5]
[361839078,1747827117391,-460.09,0.00038904,5]
[361839079,1747827117401,-3043.74,0.00038904,5]
[361839080,1747827117411,-3632.54,0.00038904,5]
[361839081,1747827117421,-1270.86,0.00038904,5]
[361839082,1747827117430,-1956.56,0.00038904,5]
[361839083,1747827117440,-930.2,0.00038904,5]
[361839084,1747827117450,-2005.74,0.00038904,5]
[361839085,1747827117459,-1347.5,0.00038904,5]
[361839086,1747827117468,-607.7,0.00038904,5]
[361839087,1747827117478,-1108.97,0.00038904,5]
[361839088,1747827117488,-602.41,0.00038904,5]
[361839089,1747827117497,-566.38,0.00038904,5]
[361839090,1747827117507,-908.79,0.00038904,5]
[361839091,1747827117518,-470.13,0.00038904,5]
[361839092,1747827117528,-684.18,0.00038904,5]
[361839093,1747827117538,-511.84,0.00038904,5]
[361839094,1747827117548,-4969.67,0.00038904,5]
[361839095,1747827117558,-568.01322555,0.00038904,5]
[361839096,1747827117568,-1780.73,0.00038904,5]
[361839097,1747827117577,-2063.59,0.00038904,5]
[361839098,1747827117587,-866.09,0.00038904,5]
[361839099,1747827117598,-420.0,0.00038904,5]
[361839100,1747827117607,-593.02,0.00038904,5]
[361839101,1747827117617,-1691.23,0.00038904,5]
[361839102,1747827117626,-823.81,0.00038904,5]
[361839103,1747827117636,-1222.13,0.00038904,5]
[361839104,1747827117648,-632.72,0.00038904,5]
[361839105,1747827117658,-1212.6,0.00038904,5]
[361839106,1747827117667,-899.54,0.00038904,5]
[361839107,1747827117677,-553.14,0.00038904,5]
[361839108,1747827117687,-14631.66,0.00038904,5]
[361839109,1747827117697,-2455.33,0.00038904,5]
[361839110,1747827117707,-687.17,0.00038904,5]
[361839111,1747827117716,-510.0,0.00038904,5]
[361839112,1747827117730,-1819.43,0.00038904,5]
[361839113,1747827117740,-737.01,0.00038904,5]
[361839114,1747827117751,-570.3,0.00038904,5]
[361839115,1747827117762,-3896.68,0.00038904,5]
[361839116,1747827117775,-539.51,0.00038904,5]
[361839117,1747827117792,-1414.29,0.00038904,5]
[361839118,1747827117801,-3151.73,0.00038904,5]
[361839119,1747827117813,-14144.26,0.00038904,5]
[361839120,1747827117823,-8547.26,0.00038904,5]
[361839121,1747827117832,-4415.45,0.00038904,5]
[361839122,1747827117842,-1703.83,0.00038904,5]
[361839123,1747827117853,-555.55,0.00038904,5]
[361839124,1747827117863,-1230.64,0.00038904,5]
[361839125,1747827117874,-6937.33,0.00038904,5]
[361839126,1747827117883,-15406.07,0.00038904,5]
[361839127,1747827117893,-634.69,0.00038904,5]
[361839128,1747827117903,-1151.78,0.00038904,5]
[361839129,1747827117912,-29896.52,0.00038904,5]
[361839130,1747827117922,-7119.22,0.00038904,5]
[361839131,1747827117932,-4554.6,0.00038904,5]
[361839132,1747827117942,-453.24,0.00038904,5]
[361839133,1747827117951,-923.2,0.00038904,5]
[361839134,1747827117961,-1187.43,0.00038904,5]
[361839135,1747827117971,-1687.56,0.00038904,5]
[361839136,1747827117981,-735.32,0.00038904,5]
[361839137,1747827117991,-1027.32,0.00038904,5]
[361839138,1747827118000,-422.99,0.00038904,5]
[361839139,1747827118010,-2411.69,0.00038904,5]
[361839140,1747827118019,-1168.04,0.00038904,5]
[361839141,1747827118029,-354.94547097,0.00038904,5]
[361839142,1747827118039,-2041.94,0.00038904,5]
[361839143,1747827118049,-987.93,0.00038904,5]
[361839144,1747827118058,-1081.8,0.00038904,5]
[361839145,1747827118068,-1021.78,0.00038904,5]
[361839146,1747827118077,-990.58,0.00038904,5]
[361839147,1747827118088,-836.48,0.00038904,5]
[361839148,1747827118098,-1734.22,0.00038904,5]
[361839149,1747827118108,-3677.77,0.00038904,5]
[361839150,1747827118118,-1825.28,0.00038904,5]
[361839151,1747827118129,-3633.83,0.00038904,5]
[361839152,1747827118139,-593.9,0.00038904,5]
[361839153,1747827118147,-5549.41,0.00038904,5]
[361839154,1747827118158,-638.11,0.00038904,2]
[361839155,1747827118169,-2012.33,0.00038904,5]
[361839156,1747827118178,-2891.24,0.00038904,5]
[361839157,1747827118188,-3346.56,0.00038904,5]
[361839158,1747827118197,-709.25,0.00038904,5]
[361839159,1747827118206,-420.63,0.00038904,5]
[361839160,1747827118217,-1095.31,0.00038904,5]
[361839161,1747827118227,-470.99,0.00038904,5]
[361839162,1747827118237,-451.82,0.00038904,5]
[361839163,1747827118246,-426.33,0.00038904,5]
[361839164,1747827118255,-1236.71,0.00038904,5]
[361839165,1747827118265,-2495.64,0.00038904,5]
[361839166,1747827118277,-553.13693557,0.00038904,5]
[361839167,1747827118287,-1160.66,0.00038904,5]
[361839168,1747827118297,-4059.65,0.00038904,5]
[361839169,1747827118307,-561.7,0.00038904,5]
[361839170,1747827118316,-6775.14,0.00038904,5]
[361839171,1747827118327,-227.67159253,0.00038904,5]
[361839172,1747827118336,-3582.79,0.00038904,5]
[361839173,1747827118346,-477.4,0.00038904,5]
[361839174,1747827118356,-1722.63,0.00038904,5]
[361839175,1747827118367,-1654.14,0.00038904,5]
[361839176,1747827118376,-567.49,0.00038904,5]
[361839177,1747827118386,-1143.17,0.00038904,5]
[361839178,1747827118396,-471.02,0.00038904,5]
[361839179,1747827118405,-933.58,0.00038904,5]
[361839180,1747827118415,-2021.44,0.00038904,5]
[361839181,1747827118424,-4350.06,0.00038904,5]
[361839182,1747827118434,-814.46,0.00038904,5]
[361839183,1747827118443,-749.3,0.00038904,5]
[361839184,1747827118453,-150.0,0.00038933,7]
[361839185,1747827118462,-1441.14,0.00038941,30]
[361839186,1747827118471,-1441.14,0.00038941,30]
[361839187,1747827118481,-302.63,0.00039,14]
[361839188,1747827118491,-150.0,0.00039011,7]
[361839189,1747827118500,-150.0,0.0003905,7]
[361839190,1747827118510,-267.06,0.00039054,120]
[361839191,1747827118519,-500.0,0.00039076,60]
[361839192,1747827118529,-150.0,0.00039089,7]
[361839193,1747827118539,-8350.69322024,0.000391,120]
[361839194,1747827118548,-1435.0,0.000391,20]
[361839195,1747827118558,-496.5894861,0.000391,20]
[361839196,1747827118567,-2500.0,0.000391,120]
[361839197,1747827118577,-150.0,0.00039157,7]
[361839198,1747827118586,-214.5946766,0.00039166,2]
[361839199,1747827118596,-151.0,0.00039166,14]
[361839200,1747827118606,-151.0,0.00039166,14]
[361839201,1747827118615,-214119.7972646,0.00039166,2]
[361839202,1747827118623,-151.0,0.00039166,14]
[361839203,1747827118633,-150.0,0.00039167,7]
[361839204,1747827118642,-4186.0,0.00039178,5]
[361839205,1747827118651,-852.10993447,0.00039178,5]
[361839206,1747827118661,-838.29894462,0.00039178,5]
[361839207,1747827118671,-756.47,0.00039178,5]
[361839208,1747827118680,-456.89106923,0.00039178,5]
[361839209,1747827118690,-480.17209627,0.00039178,5]
[361839210,1747827118700,-803.74083591,0.00039178,5]
[361839211,1747827118710,-1218.31599532,0.00039178,5]
[361839212,1747827118721,-943.07783691,0.00039178,5]
[361839213,1747827118735,-797.26721636,0.00039178,5]
[361839214,1747827118745,-1263.55557922,0.00039178,5]
[361839215,1747827118756,-599.73246313,0.00039178,5]
[361839216,1747827118767,-1887.21164938,0.00039178,5]
[361839217,1747827118778,-537.64677284,0.00039178,5]
[361839218,1747827118787,-995.65838096,0.00039178,5]
[361839219,1747827118797,-692.2591134,0.00039178,5]
[361839220,1747827118806,-584.35566592,0.00039178,5]
[361839221,1747827118816,-847.76714751,0.00039178,5]
[361839222,1747827118826,-674.12436109,0.00039178,5]
[361839223,1747827118836,-628.03130298,0.00039178,5]
[361839224,1747827118846,-524.93079574,0.00039178,5]
[361839225,1747827118855,-2110.0,0.00039178,2]
[361839226,1747827118866,-1128.57364865,0.00039178,5]
[361839227,1747827118876,-814.73760366,0.00039178,5]
[361839228,1747827118887,-1370.33141565,0.00039178,5]
[361839229,1747827118897,-575.05282399,0.00039178,5]
[361839230,1747827118908,-455.24207784,0.00039178,5]
[361839231,1747827118918,-1337.88,0.00039178,5]
[361839232,1747827118928,-478.40330084,0.00039178,5]
[361839233,1747827118938,-504.09705952,0.00039178,5]
[361839234,1747827118948,-565.86833967,0.00039178,5]
[361839235,1747827118958,-728.60791775,0.00039178,5]
[361839236,1747827118967,-732.98522845,0.00039178,5]
[361839237,1747827118976,-1165.41557094,0.00039178,5]
[361839238,1747827118987,-1379.09622951,0.00039178,5]
[361839239,1747827118998,-2721.32508027,0.00039178,5]
[361839240,1747827119007,-1472.79705967,0.00039178,5]
[361839241,1747827119017,-815.39,0.00039178,5]
[361839242,1747827119027,-3421.68883445,0.00039178,5]
[361839243,1747827119036,-2581.60757607,0.00039178,5]
[361839244,1747827119046,-3315.38001154,0.00039178,5]
[361839245,1747827119055,-1137.58595627,0.00039178,5]
[361839246,1747827119066,-1400.0981061,0.00039178,5]
[361839247,1747827119076,-2580.22888487,0.00039178,5]
[361839248,1747827119086,-595.18622547,0.00039178,5]
[361839249,1747827119095,-1980.47441953,0.00039178,5]
[361839250,1747827119104,-2964.24571449,0.00039178,5]
[361839251,1747827119115,-461.83494629,0.00039178,5]
[361839252,1747827119125,-1561.87392452,0.00039178,5]
[361839253,1747827119134,-950.57620251,0.00039178,5]
[361839254,1747827119143,-1770.00749107,0.00039178,5]
[361839255,1747827119153,-498.51407394,0.00039178,5]
[361839256,1747827119163,-1036.71991966,0.00039178,5]
[361839257,1747827119172,-934.46243896,0.00039178,5]
[361839258,1747827119182,-3529.14799724,0.00039178,5]
[361839259,1747827119191,-1927.57690286,0.00039178,5]
[361839260,1747827119201,-1266.6736801,0.00039178,5]
[361839261,1747827119212,-1455.85645521,0.00039178,5]
[361839262,1747827119224,-2836.86287516,0.00039178,5]
[361839263,1747827119235,-760.54838378,0.00039178,5]
[361839264,1747827119244,-1060.96121693,0.00039178,5]
[361839265,1747827119254,-6149.55515778,0.00039178,5]
[361839266,1747827119263,-1097.90077201,0.00039178,5]
[361839267,1747827119273,-879.7064861,0.00039178,5]
[361839268,1747827119283,-1675.08351497,0.00039178,5]
[361839269,1747827119293,-1406.85449145,0.00039178,5]
[361839270,1747827119303,-868.08176713,0.00039178,5]
[361839271,1747827119313,-526.81412251,0.00039178,5]
[361839272,1747827119322,-951.09089772,0.00039178,5]
[361839273,1747827119332,-882.60002542,0.00039178,5]
[361839274,1747827119342,-800.38912937,0.00039178,5]
[361839275,1747827119351,-504.39799806,0.00039178,5]
[361839276,1747827119361,-1081.57780371,0.00039178,5]
[361839277,1747827119372,-460.28273886,0.00039178,5]
[361839278,1747827119382,-3043.76134996,0.00039178,5]
[361839279,1747827119392,-157.28656283,0.00039178,5]
[361839280,1747827119403,-151.11012977,0.00039178,5]
[361839281,1747827119413,-150.0,0.00039178,5]
[361839282,1747827119423,-152.29395762,0.00039178,5]
[361839283,1747827119433,-3632.66524458,0.00039178,5]
[361839284,1747827119443,-1270.88842783,0.00039178,5]
[361839285,1747827119453,-1956.66130168,0.00039178,5]
[361839286,1747827119463,-930.39880011,0.00039178,5]
[361839287,1747827119473,-2005.74963433,0.00039178,5]
[361839288,1747827119483,-1347.57989415,0.00039178,5]
[361839289,1747827119492,-150.0,0.00039178,5]
[361839290,1747827119502,-150.0,0.00039178,5]
[361839291,1747827119512,-153.12870604,0.00039178,5]
[361839292,1747827119525,-150.0,0.00039178,5]
[361839293,1747827119536,-150.0,0.00039178,5]
[361839294,1747827119547,-150.0,0.00039178,5]
[361839295,1747827119557,-607.83674466,0.00039178,5]
[361839296,1747827119567,-1108.99422981,0.00039178,5]
[361839297,1747827119580,-602.52327656,0.00039178,5]
[361839298,1747827119590,-566.56797497,0.00039178,5]
[361839299,1747827119600,-908.96403657,0.00039178,5]
[361839300,1747827119609,-470.29,0.00039178,5]
[361839301,1747827119621,-684.23322524,0.00039178,5]
[361839302,1747827119631,-511.90217755,0.00039178,5]
[361839303,1747827119640,-4969.84236365,0.00039178,5]
[361839304,1747827119650,-1780.76249654,0.00039178,5]
[361839305,1747827119660,-2063.70396173,0.00039178,5]
[361839306,1747827119671,-866.12419785,0.00039178,5]
[361839307,1747827119680,-202.68696241,0.00039178,5]
[361839308,1747827119690,-593.05687047,0.00039178,5]
[361839309,1747827119699,-1691.32009162,0.00039178,5]
[361839310,1747827119709,-824.01290072,0.00039178,5]
[361839311,1747827119719,-1222.19419368,0.00039178,5]
[361839312,1747827119733,-632.7522345,0.00039178,5]
[361839313,1747827119743,-1212.60657972,0.00039178,5]
[361839314,1747827119752,-899.59909613,0.00039178,5]
[361839315,1747827119763,-553.15124652,0.00039178,5]
[361839316,1747827119773,-14631.75961775,0.00039178,5]
[361839317,1747827119783,-2455.56876436,0.00039178,5]
[361839318,1747827119794,-687.23828813,0.00039178,5]
[361839319,1747827119804,-510.10617022,0.00039178,5]
[361839320,1747827119814,-1819.47130294,0.00039178,5]
[361839321,1747827119824,-737.10905306,0.00039178,5]
[361839322,1747827119833,-570.36310924,0.00039178,5]
[361839323,1747827119843,-3896.84796184,0.00039178,5]
[361839324,1747827119859,-539.595355,0.00039178,5]
[361839325,1747827119869,-1414.33,0.00039178,5]
[361839326,1747827119880,-3151.75312052,0.00039178,5]
[361839327,1747827119890,-14144.39654918,0.00039178,5]
[361839328,1747827119901,-8547.40873043,0.00039178,5]
[361839329,1747827119912,-4415.52957429,0.00039178,5]
[361839330,1747827119922,-1704.04044599,0.00039178,5]
[361839331,1747827119933,-555.70905448,0.00039178,5]
[361839332,1747827119944,-1230.81847861,0.00039178,5]
[361839333,1747827119954,-6937.44417078,0.00039178,5]
[361839334,1747827119963,-15406.13530198,0.00039178,5]
[361839335,1747827119974,-634.69177326,0.00039178,5]
[361839336,1747827119984,-1151.81843829,0.00039178,5]
[361839337,1747827119994,-29896.52475955,0.00039178,5]
[361839338,1747827120006,-7119.42852045,0.00039178,5]
[361839339,1747827120017,-4554.71838279,0.00039178,5]
[361839340,1747827120027,-453.36471353,0.00039178,5]
[361839341,1747827120038,-923.26978733,0.00039178,5]
[361839342,1747827120049,-1187.58389076,0.00039178,5]
[361839343,1747827120059,-1687.78335101,0.00039178,5]
[361839344,1747827120070,-735.51347462,0.00039178,5]
[361839345,1747827120080,-1027.43164467,0.00039178,5]
[361839346,1747827120090,-423.13962494,0.00039178,5]
[361839347,1747827120101,-2411.72633835,0.00039178,5]
[361839348,1747827120112,-1168.09004802,0.00039178,5]
[361839349,1747827120123,-2042.17431936,0.00039178,5]
[361839350,1747827120133,-987.98104472,0.00039178,5]
[361839351,1747827120144,-1081.95642936,0.00039178,5]
[361839352,1747827120154,-1021.88638535,0.00039178,5]
[361839353,1747827120164,-990.65152739,0.00039178,5]
[361839354,1747827120175,-836.6351608,0.00039178,5]
[361839355,1747827120186,-1734.43522048,0.00039178,5]
[361839356,1747827120196,-3677.93722653,0.00039178,5]
[361839357,1747827120208,-1825.43833905,0.00039178,5]
[361839358,1747827120219,-3634.00681725,0.00039178,5]
[361839359,1747827120229,-593.91726261,0.00039178,5]
[361839360,1747827120239,-5549.56814798,0.00039178,5]
[361839361,1747827120250,-163.22325592,0.00039178,5]
[361839362,1747827120260,-638.12984132,0.00039178,2]
[361839363,1747827120271,-2012.49576104,0.00039178,5]
[361839364,1747827120282,-2891.46065623,0.00039178,5]
[361839365,1747827120297,-3346.74314398,0.00039178,5]
[361839366,1747827120307,-709.3685116,0.00039178,5]
[361839367,1747827120318,-420.83288186,0.00039178,5]
[361839368,1747827120329,-1095.54111704,0.00039178,5]
[361839369,1747827120339,-451.84883688,0.00039178,5]
[361839370,1747827120349,-471.14852735,0.00039178,5]
[361839371,1747827120360,-426.46504933,0.00039178,5]
[361839372,1747827120371,-1236.75,0.00039178,5]
[361839373,1747827120382,-2495.79632726,0.00039178,5]
[361839374,1747827120392,-1160.84465036,0.00039178,5]
[361839375,1747827120402,-4059.86596899,0.00039178,5]
[361839376,1747827120413,-561.79035722,0.00039178,5]
[361839377,1747827120424,-6775.26252922,0.00039178,5]
[361839378,1747827120434,-3582.79972605,0.00039178,5]
[361839379,1747827120445,-477.45661371,0.00039178,5]
[361839380,1747827120455,-1722.83978854,0.00039178,5]
[361839381,1747827120466,-1654.17094414,0.00039178,5]
[361839382,1747827120476,-567.56357066,0.00039178,5]
[361839383,1747827120487,-1143.28604453,0.00039178,5]
[361839384,1747827120497,-471.13230384,0.00039178,5]
[361839385,1747827120508,-933.80562636,0.00039178,5]
[361839386,1747827120519,-2021.45600439,0.00039178,5]
[361839387,1747827120529,-4350.22924998,0.00039178,5]
[361839388,1747827120539,-814.63705032,0.00039178,5]
[361839389,1747827120550,-749.36626615,0.00039178,5]
[361839390,1747827120560,-1245.22,0.00039178,5]
[361839391,1747827120570,-5000.0,0.00039186,2]
[361839392,1747827120580,-5000.0,0.00039188,2]
[361839393,1747827120591,-25000.0,0.00039193,2]
[361839394,1747827120602,-150.0,0.00039205,5]
[361839395,1747827120612,-1441.14,0.00039215,30]
[361839396,1747827120623,-1441.14,0.00039215,30]
[361839397,1747827120634,-1250.0,0.00039226,2]
[361839398,1747827120644,-1250.0,0.00039238,2]
[361839399,1747827120655,-150.0,0.00039245,7]
[361839400,1747827120667,-1000.0,0.00039262,2]
[361839401,1747827120678,-1000.0,0.00039262,2]
[361839402,1747827120689,-1000.0,0.00039262,2]
[361839403,1747827120700,-1000.0,0.00039262,2]
[361839404,1747827120710,-5000.0,0.00039272,2]
[361839405,1747827120723,-5000.0,0.00039292,2]
[361839406,1747827120736,-5000.0,0.000393,2]
[361839407,1747827120747,-150.0,0.00039323,7]
[361839408,1747827120759,-5000.0,0.00039325,2]
[361839409,1747827120771,-1658.21,0.0003933,2]
[361839410,1747827120782,-1250.0,0.00039338,2]
[361839411,1747827120794,-5000.0,0.00039348,2]
[361839412,1747827120806,-2500.0,0.00039348,2]
[361839413,1747827120817,-535.52,0.00039382,2]
[361839414,1747827120829,-5000.0,0.00039389,2]
[361839415,1747827120840,-150.0,0.00039401,7]
[361839416,1747827120852,-3918.7953,0.00039412,30]
[361839417,1747827120863,-5000.0,0.00039445,2]
[361839418,1747827120876,-170.1,0.00039452,2]
[361839419,1747827120887,-150.34,0.00039452,2]
[361839420,1747827120899,-150.34,0.00039452,2]
[361839421,1747827120911,-150.34,0.00039452,2]
[361839422,1747827120922,-150.34,0.00039452,2]
[361839423,1747827120933,-150.34,0.00039452,2]
[361839424,1747827120944,-150.34,0.00039452,2]
[361839425,1747827120956,-150.34,0.00039452,2]
[361839426,1747827120968,-150.34,0.00039452,2]
[361839427,1747827120979,-353.35,0.00039452,2]
[361839428,1747827120990,-150.34,0.00039452,2]
[361839429,1747827121000,-150.34,0.00039452,2]
[361839430,1747827121011,-150.34,0.00039452,2]
[361839431,1747827121022,-150.34,0.00039452,2]
[361839432,1747827121032,-150.34,0.00039452,2]
[361839433,1747827121043,-150.34,0.00039452,2]
[361839434,1747827121054,-150.34,0.00039452,2]
[361839435,1747827121065,-1753.03,0.00039472,2]
[361839436,1747827121075,-150.0,0.00039479,7]
[361839437,1747827121086,-150.0,0.00039479,7]
[361839438,1747827121096,-5000.0,0.0003948,2]
[361839439,1747827121106,-5000.0,0.00039488,2]
[361839440,1747827121116,-1441.14,0.00039489,30]
[361839441,1747827121128,-1441.14,0.00039489,30]
[361839442,1747827121139,-1435.0,0.00039491,20]
[361839443,1747827121149,-4870.76,0.00039513,2]
[361839444,1747827121160,-25000.0,0.0003952,2]
[361839445,1747827121170,-151.0,0.0003952,14]
[361839446,1747827121181,-4123.13,0.00039542,2]
[361839447,1747827121191,-823.19,0.00039548,2]
[361839448,1747827121202,-150.0,0.00039557,7]
[361839449,1747827121213,-5000.0,0.00039561,2]
[361839450,1747827121223,-5000.0,0.00039564,2]
[361839451,1747827121234,-25000.0,0.00039566,2]
[361839452,1747827121537,-5000.0,0.00039574,2]
[361839453,1747827121578,-645.56,0.00039579,2]
[361839454,1747827121588,-350.26029,0.000396,120]
[361839455,1747827121598,-18329.56,0.000396,14]
[361839456,1747827121616,-5000.0,0.00039615,2]
[361839457,1747827121628,-5000.0,0.00039621,2]
[361839458,1747827121639,-150.0,0.00039635,7]
[361839459,1747827121649,-257.91778498,0.0003964,2]
[361839460,1747827121660,-150.0,0.00039642,120]
[361839461,1747827121671,-2500.0,0.00039647,2]
[361839462,1747827121682,-5000.0,0.00039668,2]
[361839463,1747827121692,-5000.0,0.00039675,2]
[361839464,1747827121703,-2110.0,0.00039678,2]
[361839465,1747827121714,-223.701896,0.00039678,14]
[361839466,1747827121730,-151.0,0.00039678,14]
[361839467,1747827121741,-151.0,0.00039678,14]
[361839468,1747827121751,-4950.0,0.00039682,2]
[361839469,1747827121763,-5000.0,0.00039686,2]
[361839470,1747827121774,-5000.0,0.0003969,2]
[361839471,1747827121785,-150.0,0.00039694,7]
[361839472,1747827121798,-150.0,0.00039694,7]
[361839473,1747827121809,-581.52768564,0.000397,120]
[361839474,1747827121820,-150.0,0.00039713,7]
[361839475,1747827121832,-5000.0,0.00039722,2]
[361839476,1747827121842,-805.46,0.00039726,2]
[361839477,1747827121852,-312.15,0.00039726,2]
[361839478,1747827121864,-922.62,0.00039726,2]
[361839479,1747827121875,-3055.82721143,0.0003976,41]
[361839480,1747827121886,-5000.0,0.00039762,2]
[361839481,1747827121897,-1441.14,0.00039763,30]
[361839482,1747827121907,-1441.14,0.00039763,30]
[361839483,1747827121918,-150.0,0.00039772,120]
[361839484,1747827121929,-150.0,0.00039791,7]
[361839485,1747827121940,-2000.0,0.000398,30]
[361839486,1747827121951,-532.10479275,0.000398,120]
[361839487,1747827121962,-194.53428919,0.000398,120]
[361839488,1747827121972,-1140.72864702,0.000398,120]
[361839489,1747827121983,-25000.0,0.00039822,2]
[361839490,1747827121993,-150.0,0.00039869,7]
[361839491,1747827122003,-4500000.0,0.0003988,30]
[361839492,1747827122014,-101457.51198699,0.0003988,120]
[361839493,1747827122024,-2577.97693162,0.0003988,120]
[361839494,1747827122034,-2800.0,0.0003988,16]
[361839495,1747827122050,-151.0,0.0003988,14]
[361839496,1747827122061,-186.457943,0.0003988,14]
[361839497,1747827122072,-153.200712,0.0003988,14]
[361839498,1747827122083,-151.0,0.0003988,14]
[361839499,1747827122094,-151.0,0.0003988,14]
[361839500,1747827122104,-151.0,0.0003988,14]
[361839501,1747827122115,-1250.0,0.00039881,2]
[361839502,1747827122126,-1435.0,0.00039882,20]
[361839503,1747827122136,-5000.0,0.00039885,2]
[361839504,1747827122147,-160.0,0.000399,32]
[361839505,1747827122157,-161.08381502,0.000399,120]
[361839506,1747827122168,-75503.0,0.000399,7]
[361839507,1747827122178,-1200.0,0.000399,14]
[361839508,1747827122189,-150.0,0.00039908,7]
[361839509,1747827122199,-6004.95,0.00039911,2]
[361839510,1747827122210,-4977.66,0.00039942,2]
[361839511,1747827122221,-150.0,0.00039947,7]
[361839512,1747827122231,-150.0,0.0003995,120]
[361839513,1747827122241,-5000.0,0.00039964,2]
[361839514,1747827122252,-5000.0,0.0003997,2]
[361839515,1747827122262,-5000.0,0.00039975,2]
[361839516,1747827122272,-50000.0,0.0003998,120]
[361839517,1747827122282,-25000.0,0.00039985,2]
[361839518,1747827122293,-300000.0,0.00039986,120]
[361839519,1747827122303,-25000.0,0.00039989,2]
[361839520,1747827122314,-1901.92143864,0.0003999,10]
[361839521,1747827122324,-466.00821246,0.00039999,15]